lending/lending_fUSD_20240621
["ID","MTS","AMOUNT","RATE_DAILY","PERIOD"]
[330016097,1718937046901,-151.0,0.0002288,7]
[330016098,1718937046911,-151.0,0.0002288,7]
[330016099,1718937046920,-151.0,0.0002288,7]
[330016100,1718937046930,-166.134132,0.0002288,7]
[330016101,1718937046939,-166.134132,0.0002288,7]
[330016102,1718937046949,-197.519136,0.0002288,7]
[330016103,1718937046958,-197.519136,0.0002288,7]
[330016104,1718937046968,-7243.378875,0.0002288,7]
[330016105,1718937046978,-560.617539,0.0002288,7]
[330016106,1718937046990,-7243.378875,0.0002288,7]
[330016107,1718937047000,-560.617539,0.0002288,7]
[330016108,1718937047010,-293.737125,0.0002288,7]
[330016109,1718937047019,-293.737125,0.0002288,7]
[330016110,1718937047028,-177.934659,0.0002288,7]
[330016111,1718937047037,-151.0,0.0002288,7]
[330016112,1718937047047,-151.0,0.0002288,7]
[330016113,1718937047057,-426.158956,0.0002288,7]
[330016114,1718937047067,-151.0,0.0002288,7]
[330016115,1718937047077,-268.415005,0.0002288,7]
[330016116,1718937047087,-151.0,0.0002288,7]
[330016117,1718937047097,-426.158956,0.0002288,7]
[330016118,1718937047107,-268.415005,0.0002288,7]
[330016119,1718937047116,-155.46902863,0.00022881,2]
[330016120,1718937047126,-151.0,0.00022883,7]
[330016121,1718937047136,-151.0,0.00022883,7]
[330016122,1718937047145,-155.446615,0.00022883,7]
[330016123,1718937047155,-6245.577314,0.00022883,7]
[330016124,1718937047164,-152.905769,0.00022883,7]
[330016125,1718937047173,-6245.577314,0.00022883,7]
[330016126,1718937047182,-151.0,0.00022883,7]
[330016127,1718937047191,-697.36628,0.00022883,7]
[330016128,1718937047201,-697.36628,0.00022883,7]
[330016129,1718937047211,-151.0,0.00022883,7]
[330016130,1718937047221,-301.36591,0.00022883,7]
[330016131,1718937047230,-151.0,0.00022883,7]
[330016132,1718937047241,-3606.0394928,0.00022883,2]
[330016133,1718937047254,-166.66666666,0.00022885,2]
[330016134,1718937047264,-3606.0394928,0.00022887,2]
[330016135,1718937047274,-492.76921959,0.00022887,2]
[330016136,1718937047283,-545.2150167,0.00022888,2]
[330016137,1718937047293,-596.696504,0.00022888,2]
[330016138,1718937047302,-155.69120155,0.0002289,2]
[330016139,1718937047311,-151.0,0.0002289,7]
[330016140,1718937047321,-194.90576862,0.0002289,2]
[330016141,1718937047332,-3606.0394928,0.0002289,2]
[330016142,1718937047342,-2130.9225238,0.0002289,2]
[330016143,1718937047351,-6204.52583831,0.0002289,2]
[330016144,1718937047361,-345.26640851,0.0002289,2]
[330016145,1718937047370,-852.46666681,0.0002289,4]
[330016146,1718937047380,-8205.3842937,0.0002289,2]
[330016147,1718937047389,-6542.71954672,0.0002289,2]
[330016148,1718937047399,-217.947913,0.00022891,2]
[330016149,1718937047409,-154.23724614,0.00022893,2]
[330016150,1718937047420,-490.0,0.000229,5]
[330016151,1718937047430,-980.0,0.000229,5]
[330016152,1718937047440,-262.0,0.000229,2]
[330016153,1718937047449,-262.0,0.000229,2]
[330016154,1718937047459,-525.0,0.000229,2]
[330016155,1718937047468,-525.0,0.000229,2]
[330016156,1718937047477,-190.0,0.000229,5]
[330016157,1718937047487,-104635.59394832,0.000229,2]
[330016158,1718937047498,-224.56003424,0.00022903,2]
[330016159,1718937047508,-163.59750334,0.00022903,2]
[330016160,1718937047517,-151.0,0.00022904,7]
[330016161,1718937047527,-151.0,0.00022904,7]
[330016162,1718937047539,-151.0,0.00022904,7]
[330016163,1718937047548,-298.934974,0.00022904,7]
[330016164,1718937047558,-151.0,0.00022904,7]
[330016165,1718937047567,-151.0,0.00022904,7]
[330016166,1718937047577,-151.0,0.00022904,7]
[330016167,1718937047587,-151.0,0.00022904,7]
[330016168,1718937047597,-151.0,0.00022904,7]
[330016169,1718937047607,-151.0,0.00022904,7]
[330016170,1718937047617,-151.0,0.00022904,7]
[330016171,1718937047626,-151.0,0.00022904,7]
[330016172,1718937047636,-151.0,0.00022904,7]
[330016173,1718937047646,-151.0,0.00022904,7]
[330016174,1718937047656,-151.0,0.00022904,7]
[330016175,1718937047666,-151.0,0.00022904,7]
[330016176,1718937047675,-151.0,0.00022904,7]
[330016177,1718937047685,-151.0,0.00022904,7]
[330016178,1718937047695,-151.0,0.00022904,7]
[330016179,1718937047704,-716.687671,0.00022904,7]
[330016180,1718937047714,-174.633544,0.00022904,7]
[330016181,1718937047724,-151.0,0.00022904,7]
[330016182,1718937047733,-151.0,0.00022904,7]
[330016183,1718937047744,-166.134132,0.00022904,7]
[330016184,1718937047754,-166.134132,0.00022904,7]
[330016185,1718937047763,-197.519136,0.00022904,7]
[330016186,1718937047773,-197.519136,0.00022904,7]
[330016187,1718937047782,-7243.378875,0.00022904,7]
[330016188,1718937047792,-560.617539,0.00022904,7]
[330016189,1718937047801,-7243.378875,0.00022904,7]
[330016190,1718937047811,-560.617539,0.00022904,7]
[330016191,1718937047820,-293.737125,0.00022904,7]
[330016192,1718937047830,-293.737125,0.00022904,7]
[330016193,1718937047840,-151.0,0.00022904,7]
[330016194,1718937047849,-151.0,0.00022904,7]
[330016195,1718937047859,-426.158956,0.00022904,7]
[330016196,1718937047868,-240.240006,0.00022904,7]
[330016197,1718937047878,-268.415005,0.00022904,7]
[330016198,1718937047888,-151.0,0.00022904,7]
[330016199,1718937047897,-426.158956,0.00022904,7]
[330016200,1718937047906,-268.415005,0.00022904,7]
[330016201,1718937047916,-151.0,0.00022904,7]
[330016202,1718937047925,-151.0,0.00022904,7]
[330016203,1718937047936,-6245.577314,0.00022904,7]
[330016204,1718937047945,-6245.577314,0.00022904,7]
[330016205,1718937047955,-298.834019,0.00022904,7]
[330016206,1718937047965,-697.36628,0.00022904,7]
[330016207,1718937047975,-697.36628,0.00022904,7]
[330016208,1718937047985,-151.0,0.00022904,7]
[330016209,1718937047998,-151.0,0.00022904,7]
[330016210,1718937048007,-2840.97908305,0.00022904,2]
[330016211,1718937048016,-1363.29425621,0.00022904,2]
[330016212,1718937048025,-480.06324731,0.00022915,2]
[330016213,1718937048035,-150.59824252,0.00022926,2]
[330016214,1718937048045,-480.06324731,0.00022929,2]
[330016215,1718937048055,-186.45397295,0.00022942,2]
[330016216,1718937048065,-151.0,0.00022946,7]
[330016217,1718937048075,-151.0,0.00022946,7]
[330016218,1718937048086,-715.79675531,0.00022948,2]
[330016219,1718937048095,-152.0,0.0002295,21]
[330016220,1718937048105,-1000.0,0.0002295,2]
[330016221,1718937048114,-171.3394229,0.00022955,2]
[330016222,1718937048124,-150.59824252,0.00022956,2]
[330016223,1718937048134,-600.98549372,0.0002297,2]
[330016224,1718937048143,-166.66666666,0.00022973,2]
[330016225,1718937048153,-1132.1390346,0.00022974,2]
[330016226,1718937048163,-1132.1390346,0.00022974,2]
[330016227,1718937048172,-1132.1390346,0.00022974,2]
[330016228,1718937048181,-1132.1390346,0.00022974,2]
[330016229,1718937048191,-1132.1390346,0.00022974,2]
[330016230,1718937048200,-151.0,0.00022977,4]
[330016231,1718937048210,-1132.1390346,0.0002298,2]
[330016232,1718937048219,-155.36348853,0.00022986,2]
[330016233,1718937048229,-10834.98503641,0.00022986,2]
[330016234,1718937048966,-855.62630079,0.00022986,2]
[330016235,1718937048978,-352.72799642,0.00022986,2]
[330016236,1718937048990,-818.84263907,0.00022986,2]
[330016237,1718937049000,-660.19,0.00022986,2]
[330016238,1718937049012,-2084.09343301,0.00022986,2]
[330016239,1718937049023,-1175.26064,0.00022986,2]
[330016240,1718937049035,-16391.2739543,0.00022986,2]
[330016241,1718937049044,-576.0,0.00022986,2]
[330016242,1718937049054,-2698.0,0.00022986,2]
[330016243,1718937049063,-5383.0,0.00022986,2]
[330016244,1718937049072,-162.91947507,0.00022989,10]
[330016245,1718937049082,-150.0,0.00022989,2]
[330016246,1718937049091,-150.0,0.00022989,7]
[330016247,1718937049100,-150.0,0.00022989,7]
[330016248,1718937049110,-151.63140221,0.00022989,7]
[330016249,1718937049119,-347.79168298,0.00022989,2]
[330016250,1718937049129,-1138733.81438384,0.0002299,3]
[330016251,1718937049138,-9251.67227891,0.0002299,5]
[330016252,1718937049147,-472475.53731349,0.0002299,5]
[330016253,1718937049300,-412.12512306,0.0002299,5]
[330016254,1718937049311,-292.35005528,0.0002299,5]
[330016255,1718937049323,-701.666667,0.0002299,5]
[330016256,1718937049335,-6436.31782378,0.0002299,5]
[330016257,1718937049346,-2677.88217622,0.0002299,5]
[330016258,1718937050234,-3575.3511807,0.00014678,2]
[330016259,1718937050254,-1825.79,0.00014678,2]
[330016260,1718937050265,-854.0,0.00014678,2]
[330016261,1718937050276,-579.24302928,0.00014678,2]
[330016262,1718937050289,-3165.61579002,0.00014678,2]
[330016263,1718937050299,-856.30401676,0.00019999,2]
[330016264,1718937050308,-151.0,0.00022322,7]
[330016265,1718937050318,-151.0,0.00022655,7]
[330016266,1718937050329,-214.904535,0.00022883,7]
[330016267,1718937050340,-1593.71754228,0.0002299,5]
[330016268,1718937050352,-3555.70374447,0.0002299,5]
[330016269,1718937050532,-7146.8997323,0.0002299,5]
[330016270,1718937050544,-2293.52835284,0.0002299,5]
[330016271,1718937050556,-1449.50463452,0.0002299,5]
[330016272,1718937050567,-26730.21504376,0.0002299,5]
[330016273,1718937050579,-943.43625227,0.0002299,5]
[330016274,1718937050590,-3754.07542058,0.0002299,5]
[330016275,1718937050602,-892.54323916,0.0002299,5]
[330016276,1718937050614,-265.84776388,0.0002299,5]
[330016277,1718937050627,-1762.63040928,0.0002299,5]
[330016278,1718937050639,-8448.21374209,0.0002299,5]
[330016279,1718937050664,-912.85999773,0.0002299,5]
[330016280,1718937050675,-1972.00148378,0.0002299,5]
[330016281,1718937050687,-784.50318454,0.0002299,5]
[330016282,1718937050699,-386.34527195,0.0002299,5]
[330016283,1718937050710,-858.99079704,0.0002299,5]
[330016284,1718937050720,-16873.81040717,0.0002299,5]
[330016285,1718937050733,-36728.04919,0.0002299,5]
[330016286,1718937050746,-365.77448886,0.0002299,5]
[330016287,1718937050758,-35444.44293231,0.0002299,5]
[330016288,1718937050770,-253.94151929,0.0002299,5]
[330016289,1718937050781,-508.451839,0.0002299,5]
[330016290,1718937050792,-467.73676211,0.0002299,5]
[330016291,1718937050803,-430.0,0.0002299,5]
[330016302,1718937272246,473.0,0.0001399,30]
[330016303,1718937273407,473.0,0.0001398,30]
[330016304,1718937273613,473.0,0.0001397,30]
[330016305,1718937273692,150.5,0.0001399,30]
[330016306,1718937273864,150.5,0.0001398,30]
[330016307,1718937274304,150.5,0.0001397,30]
[330016308,1718937337535,10.3030129,0.00015,14]
[330016309,1718937337561,258.61705563,0.00015,14]
[330016310,1718937392445,331.0,0.0001399,30]
[330016311,1718937392938,331.0,0.0001398,30]
[330016312,1718937393431,331.0,0.0001397,30]
[330016316,1718937511803,232.0,0.0001399,30]
[330016317,1718937512282,232.0,0.0001398,30]
[330016318,1718937512849,232.0,0.0001397,30]
[330016319,1718937631216,150.5,0.0001399,30]
[330016320,1718937631858,150.5,0.0001398,30]
[330016321,1718937632174,272.95,0.0001397,30]
[330016322,1718937632640,162.0,0.0001399,30]
[330016323,1718937633114,162.0,0.0001398,30]
[330016324,1718937633617,162.0,0.0001397,30]
[330016325,1718937752533,150.5,0.0001399,30]
[330016326,1718937752945,150.5,0.0001398,30]
[330016327,1718937754043,150.5,0.0001397,30]
[330016328,1718937871828,150.5,0.0001399,30]
[330016329,1718937872367,150.5,0.0001398,30]
[330016330,1718937872846,150.5,0.0001397,30]
[330016331,1718937991842,238.69,0.0001399,30]
[330016348,1718938151734,4720.0,0.00025,60]
[330016355,1718938189856,-150.0,0.00011283,2]
[330016356,1718938189880,-3940.0,0.00011284,2]
[330016357,1718938232466,-609.97,0.00012046,2]
[330016360,1718938232476,-196.0,0.00012411,2]
[330016362,1718938232485,-300.0,0.00013079,2]
[330016364,1718938232494,-785.98350454,0.0001308,2]
[330016366,1718938232505,-5870.44058301,0.0001308,2]
[330016376,1718938232762,-979.38,0.0001308,2]
[330016377,1718938232781,-2184.26646072,0.0001308,2]
[330016378,1718938232793,-16335.98194624,0.0001308,2]
[330016380,1718938239836,-4089.40964363,0.0001308,2]
[330016385,1718938239850,-69098.63143523,0.0001308,2]
[330016464,1718938240713,-645.94359641,0.0001308,2]
[330016468,1718938240725,-48065.02358725,0.0001308,2]
[330016470,1718938240737,-15752.14051684,0.0001308,2]
[330016473,1718938240748,-268.58602289,0.0001308,2]
[330016503,1718938241006,-36878.9757019,0.0001308,2]
[330016505,1718938241015,-1000.0,0.00013481,2]
[330016507,1718938241025,-250.0,0.00013551,2]
[330016509,1718938241033,-200.0,0.00013699,2]
[330016511,1718938241042,-371.58,0.00013699,2]
[330016513,1718938241051,-11079.88200394,0.000137,2]
[330016515,1718938241063,-4254.11158289,0.000137,2]
[330016780,1718938243614,-4416.69227931,0.000137,2]
[330016782,1718938243624,-159.72778162,0.00013799,2]
[330016784,1718938243635,-12742.12384478,0.00013899,2]
[330016786,1718938243644,-150.0,0.000139,2]
[330016788,1718938243654,-1872.38089823,0.000139,3]
[330016791,1718938243662,-205.21,0.000139,2]
[330016793,1718938243672,-401.45981388,0.00013969,2]
[330016795,1718938243681,-967.96103516,0.00013969,2]
[330016797,1718938243690,-1359.87216806,0.00013969,2]
[330016799,1718938243699,-525.62626757,0.0001399,2]
[330016801,1718938243708,-525.62626757,0.0001399,2]
[330016802,1718938243718,-1339.7548544,0.00013999,2]
[330016804,1718938243728,-1217487.46683316,0.00014,2]
[330016807,1718938243740,-1164.83372952,0.00014,2]
[330016820,1718938246219,-2055.95637963,0.00014,2]
[330016821,1718938246230,-1232.59825842,0.00014,2]
[330016822,1718938247025,-983.86902031,0.00014,2]
[330016823,1718938247036,-52885.1354191,0.00014,2]
[330016824,1718938247047,-179386.31367428,0.00014,2]
[330016825,1718938247058,-1011.6724071,0.00014,2]
[330016826,1718938247069,-375.93228978,0.00014,2]
[330016827,1718938247086,-585.22668101,0.00014,2]
[330016829,1718938254463,1000.0,0.00024,120]
[330016830,1718938270187,1000.0,0.00025,120]
[330016831,1718938368806,1379.0,0.00025,120]
[330016848,1718939432304,-538.30041497,0.00011825,2]
[330016852,1718939432769,-179.82724677,0.00011825,2]
[330016853,1718939432779,-300.0,0.00011945,2]
[330016854,1718939432789,-236.99061411,0.00012426,2]
[330016855,1718939432802,-410.77938589,0.00012426,2]
[330016856,1718939432812,-374.8945,0.0001298,2]
[330016857,1718939432823,-420.0,0.00013114,2]
[330016858,1718939432834,-12742.12384478,0.00013698,2]
[330016859,1718939432843,-1339.7548544,0.00013698,2]
[330016860,1718939432852,-258.9164,0.000139,2]
[330016861,1718939432861,-224.80071536,0.000139,2]
[330016862,1718939432871,-1109.25495791,0.000139,2]
[330016863,1718939432881,-2500.0,0.000139,2]
[330016864,1718939432891,-951.06003729,0.000139,2]
[330016865,1718939432901,-159.72778161,0.000139,2]
[330016866,1718939432912,-270.34923459,0.000139,2]
[330016867,1718939432921,-156.42204464,0.00013969,2]
[330016868,1718939432932,-465.66116649,0.0001399,2]
[330016869,1718939432943,-465.66116649,0.0001399,2]
[330016870,1718939432954,-465.66116649,0.0001399,2]
[330016871,1718939432963,-465.66116649,0.0001399,2]
[330016872,1718939432972,-465.66116649,0.0001399,2]
[330016873,1718939432982,-465.66116649,0.0001399,2]
[330016874,1718939432992,-465.66116649,0.0001399,2]
[330016875,1718939433002,-465.66116649,0.0001399,2]
[330016876,1718939433012,-465.66116649,0.0001399,2]
[330016877,1718939433023,-465.66116649,0.0001399,2]
[330016878,1718939433034,-465.66116649,0.0001399,2]
[330016879,1718939433046,-465.66116649,0.0001399,2]
[330016880,1718939433055,-465.66116649,0.0001399,2]
[330016881,1718939433065,-465.66116649,0.0001399,2]
[330016882,1718939433075,-465.66116649,0.0001399,2]
[330016883,1718939433085,-240.01249398,0.0001399,2]
[330016884,1718939433095,-465.66116649,0.0001399,2]
[330016885,1718939433106,-465.66116649,0.0001399,2]
[330016886,1718939433117,-465.66116649,0.0001399,2]
[330016887,1718939433126,-465.66116649,0.0001399,2]
[330016888,1718939433135,-465.66116649,0.0001399,2]
[330016889,1718939433145,-196233.336141,0.00014,2]
[330016890,1718939433157,-606.4,0.00014,2]
[330016891,1718939433169,-2009.17611856,0.00014,2]
[330016892,1718939433180,-2579.13024288,0.00014,2]
[330016893,1718939433191,-4943.83845254,0.00014,2]
[330016894,1718939433202,-442.695,0.00014,2]
[330016895,1718939433215,-498.0,0.00014,2]
[330016896,1718939433226,-284.65867738,0.00014,2]
[330016897,1718939433237,-402.53859853,0.00014,2]
[330016898,1718939433249,-670.78694448,0.00014,2]
[330016899,1718939433260,-1307.04482041,0.00014,2]
[330016900,1718939438475,-1050.11866732,0.00013999,2]
[330016901,1718939438486,-574.44950776,0.00014,2]
[330016902,1718939439051,-280.65263567,0.00014,2]
[330016905,1718939439064,-18579.65968483,0.00014,2]
[330016908,1718939439102,-1042.44162706,0.00014,2]
[330017065,1718939440784,-50713.23318748,0.00014,2]
[330017067,1718939440796,-38831.90504504,0.00014,2]
[330017070,1718939440808,-45566.40680308,0.00014,2]
[330017072,1718939440821,-3522.1009374,0.00014,2]
[330017074,1718939440833,-428.8518331,0.00014,2]
[330017077,1718939440846,-384.5721871,0.00014,2]
[330017079,1718939440858,-1048.582763,0.00014,2]
[330017147,1718939443641,-265188.66786843,0.00014,2]
[330017148,1718939443654,-627.546,0.00014,2]
[330017149,1718939443669,-1000.87999974,0.00014,2]
[330017152,1718939443681,-885.5554466,0.00014,2]
[330017154,1718939443693,-298.93134934,0.00014,2]
[330017156,1718939443705,-1113.8701207,0.00014,2]
[330017157,1718939444341,-3865.99824181,0.00014,2]
[330017158,1718939444354,-2344.1463858,0.00014,2]
[330017159,1718939444367,-454755.05695296,0.00014,2]
[330017195,1718939446805,-16110.58795862,0.00014,2]
[330017198,1718939446816,-31858.479336,0.00014,2]
[330017200,1718939790417,155.0,0.00014,10]
[330017201,1718939861435,155.0,0.00014,10]
[330017202,1718939925540,1000.0,0.00025,60]
[330017203,1718939926612,155.0,0.00014,10]
[330017204,1718939974209,1000.0,0.00025,60]
[330017205,1718939991423,184.59305915,0.00014,10]
[330017206,1718939991994,1000.0,0.00025,60]
[330017207,1718940015648,1000.0,0.00025,60]
[330017217,1718940633010,-528.3245576,0.0001376,2]
[330017219,1718940633020,-528.3245576,0.000138,2]
[330017221,1718940633030,-150.0,0.00013859,2]
[330017223,1718940633039,-4615.53951475,0.0001386,2]
[330017225,1718940633051,-1671.1711544,0.0001386,2]
[330017227,1718940633062,-628.42,0.0001386,2]
[330017229,1718940633073,-562.43544538,0.0001386,2]
[330017231,1718940633084,-1094.89027509,0.0001386,2]
[330017233,1718940633098,-8454.70795104,0.0001386,2]
[330017235,1718940633108,-9707.18878326,0.000139,2]
[330017236,1718940633122,-879.20501674,0.000139,2]
[330017237,1718940633133,-28681.36129903,0.000139,2]
[330017238,1718940633146,-88449.50220097,0.000139,2]
[330017239,1718940633157,-159.72778161,0.000139,2]
[330017240,1718940633167,-41505.52746947,0.00014,2]
[330017241,1718940633180,-24675.14347884,0.00014,2]
[330017242,1718940633192,-446.45853724,0.00014,2]
[330017243,1718940633203,-7343.88972904,0.00014,2]
[330017244,1718940633216,-351.89855854,0.00014,2]
[330017245,1718940633229,-61809.81242072,0.00014,2]
[330017246,1718940633240,-1014.34226286,0.000149,2]
[330017247,1718940633250,-7373.38861575,0.00015,10]
[330017248,1718940633260,-155.0,0.00015,2]
[330017249,1718940633270,-1663.0,0.00015,2]
[330017250,1718940633279,-10896.0,0.00015,2]
[330017251,1718940633288,-1008.88,0.00015,2]
[330017252,1718940633298,-499.99,0.00015185,2]
[330017253,1718940633308,-2829.81,0.00015185,2]
[330017254,1718940633317,-363.94,0.00015185,2]
[330017255,1718940633327,-3743.85321376,0.00015508,2]
[330017256,1718940633336,-24934.19,0.00015535,2]
[330017257,1718940633346,-150.99,0.00015535,2]
[330017258,1718940633355,-1008.88,0.00016015,2]
[330017259,1718940633365,-1014.3422628,0.00016041,2]
[330017260,1718940633375,-300.0,0.00016175,2]
[330017261,1718940633386,-400.0,0.00016244,2]
[330017262,1718940633395,-1152.781,0.00016274,2]
[330017263,1718940633405,-290.844,0.00016274,2]
[330017264,1718940633415,-5183.627,0.00016274,2]
[330017265,1718940633425,-1200.527,0.00016274,2]
[330017266,1718940633438,-5816.126,0.00016274,2]
[330017267,1718940633448,-38275.007,0.00016274,2]
[330017268,1718940633457,-1664.71,0.00016274,2]
[330017269,1718940633467,-300.0,0.00016326,2]
[330017270,1718940633477,-6071.37290813,0.000165,2]
[330017271,1718940633486,-648.59,0.00016672,2]
[330017272,1718940633496,-159.72778161,0.00016897,2]
[330017273,1718940633506,-1008.88,0.0001703,2]
[330017274,1718940633519,-1014.3422628,0.00017183,2]
[330017275,1718940633529,-2374.79710101,0.00017807,2]
[330017276,1718940633539,-2374.79710101,0.00017807,2]
[330017277,1718940633550,-173.74,0.00017826,2]
[330017278,1718940633560,-1339.7548544,0.0001803,2]
[330017279,1718940633570,-564.78,0.00018031,2]
[330017280,1718940633580,-1008.88,0.00018045,2]
[330017281,1718940633589,-500.0,0.00018246,2]
[330017282,1718940633599,-169.88,0.00018264,2]
[330017283,1718940633608,-400.0,0.00018275,2]
[330017284,1718940633624,-1014.3422628,0.00018324,2]
[330017285,1718940633635,-250.0,0.00018325,2]
[330017286,1718940633644,-200.0,0.00018347,2]
[330017287,1718940633654,-1000.0,0.0001844,2]
[330017288,1718940633664,-250.0,0.000186,2]
[330017289,1718940633673,-152.0,0.00018787,3]
[330017290,1718940633684,-392.46,0.00018793,2]
[330017292,1718940633693,-1218.36,0.00018855,30]
[330017294,1718940633704,-337.8255767,0.000189,2]
[330017295,1718940633714,-564.78,0.00018932,2]
[330017296,1718940633723,-1752.18,0.00018936,2]
[330017297,1718940633733,-648.59,0.00018936,2]
[330017298,1718940633743,-23900.0,0.00018966,2]
[330017299,1718940633754,-183.49,0.00019009,2]
[330017300,1718940633765,-1008.88,0.0001906,2]
[330017301,1718940633775,-4000.0,0.00019178,2]
[330017302,1718940633784,-152.0,0.00019184,4]
[330017303,1718940633794,-1014.3422628,0.00019466,2]
[330017304,1718940633803,-152.0,0.00019581,5]
[330017305,1718940633813,-11162.0,0.000198,5]
[330017306,1718940633823,-564.78,0.00019834,2]
[330017307,1718940633832,-159.72778161,0.00019893,2]
[330017308,1718940633842,-152.0,0.00019977,6]
[330017309,1718940633851,-2000.0,0.0002,2]
[330017310,1718940633861,-693.90389,0.0002,2]
[330017311,1718940633870,-160.0,0.0002,2]
[330017312,1718940633880,-300.0,0.00020041,2]
[330017313,1718940633890,-180.0,0.0002007,2]
[330017314,1718940633899,-1008.88,0.00020075,2]
[330017315,1718940633909,-400.0,0.00020305,2]
[330017316,1718940633919,-152.0,0.00020374,7]
[330017317,1718940633928,-171.7,0.00020548,2]
[330017318,1718940633939,-1014.3422628,0.00020607,2]
[330017319,1718940633948,-564.78,0.00020735,2]
[330017320,1718940633958,-1000.0,0.00020745,2]
[330017321,1718940633967,-152.0,0.00020771,8]
[330017322,1718940633977,-1250.0,0.00021,2]
[330017323,1718940633986,-202.369141,0.00021,2]
[330017324,1718940633996,-167.0,0.00021084,2]
[330017325,1718940634007,-1492.76253249,0.00021089,2]
[330017326,1718940634017,-1008.88,0.0002109,2]
[330017327,1718940634028,-152.0,0.00021168,9]
[330017328,1718940634037,-648.59,0.000212,2]
[330017329,1718940634047,-602.87304774,0.00021213,2]
[330017330,1718940634057,-152.0,0.00021214,2]
[330017331,1718940634066,-151.03,0.00021342,2]
[330017332,1718940634077,-300.0,0.00021411,2]
[330017333,1718940634087,-152.0,0.00021564,10]
[330017334,1718940634096,-564.78,0.00021637,2]
[330017335,1718940634106,-153.72,0.00021644,2]
[330017336,1718940634115,-627.26,0.00021644,2]
[330017337,1718940634125,-837.37,0.00021644,2]
[330017338,1718940634135,-1752.18,0.00021675,2]
[330017339,1718940634144,-151.0,0.00021711,2]
[330017340,1718940634154,-1014.3422628,0.00021749,2]
[330017341,1718940634163,-167.0,0.0002178,2]
[330017342,1718940634173,-1000.0,0.000219,2]
[330017343,1718940634184,-2135.52,0.00021918,2]
[330017344,1718940634193,-500.0,0.00021918,2]
[330017345,1718940634203,-500.0,0.00021918,2]
[330017346,1718940634212,-500.0,0.00021918,2]
[330017347,1718940634222,-500.0,0.00021918,2]
[330017348,1718940634232,-379.69933503,0.00021918,2]
[330017349,1718940634246,-120.30066497,0.00021918,2]
[330017350,1718940634256,-500.0,0.00021918,2]
[330017351,1718940634266,-152.0,0.00021961,11]
[330017352,1718940634276,-166.66666666,0.00021999,2]
[330017353,1718940634286,-2.02177856,0.00022,4]
[330017354,1718940634298,-751.3092559,0.00022,4]
[330017355,1718940634308,-9011.21460539,0.00022,2]
[330017356,1718940634318,-2443.17271649,0.00022,2]
[330017370,1718940640246,-283.683,0.00016274,2]
[330017371,1718940640257,-323.01881399,0.00022,2]
[330017372,1718940640269,-830.82995805,0.00022,2]
[330017373,1718940640976,-1527.97851147,0.00022,2]
[330017376,1718940640987,-896.86818729,0.00022,2]
[330017379,1718940640999,-605.40792271,0.00022,2]
[330017382,1718940641008,-360.64065687,0.00022003,2]
[330017384,1718940641018,-194.61869634,0.00022004,2]
[330017386,1718940641028,-1186.05133216,0.00022007,2]
[330017387,1718940641037,-153.3707536,0.00022008,2]
[330017388,1718940641047,-336.04427312,0.00022008,2]
[330017389,1718940641056,-153.3707536,0.00022012,2]
[330017390,1718940641066,-336.04427312,0.00022027,2]
[330017391,1718940641075,-166.66666666,0.00022035,2]
[330017392,1718940641085,-194.61869634,0.0002204,2]
[330017393,1718940641094,-281.60129354,0.00022058,2]
[330017394,1718940641103,-154.52607984,0.00022059,2]
[330017395,1718940641113,-194.61869634,0.00022074,2]
[330017396,1718940641122,-150.0,0.00022079,2]
[330017397,1718940641132,-2456.72055002,0.00022083,2]